[Event "IRI-ch Men Final 2015"]
[Site "Tehran"]
[Date "2016.01.28"]
[Round "11"]
[White "Darini, Pouria"]
[Black "Khamisi, S Jafar"]
[Result "1/2-1/2"]
[ECO "C51"]
[WhiteElo "2474"]
[BlackElo "2279"]
[PlyCount "122"]
[EventDate "2016.??.??"]
[EventType "tourn"]
[EventRounds "11"]
[EventCountry "IRI"]
[TimeControl "40/5400+30:1800+30"]

1. e4 {[%emt 0:00:00]} e5 {[%emt 0:00:27]} 2. Nf3 {[%emt 0:00:00]} Nc6 {
[%emt 0:00:05]} 3. Bc4 {[%emt 0:00:00]} Bc5 {[%emt 0:00:10]} 4. b4 {[%emt 0:00:
00]} Bxb4 {[%emt 0:00:44]} 5. c3 {[%emt 0:00:01]} Bd6 {[%emt 0:00:51]} 6. O-O {
[%emt 0:00:22]} Nf6 {[%emt 0:00:05]} 7. d4 {[%emt 0:00:02]} O-O {[%emt 0:00:27]
} 8. Nbd2 {[%emt 0:01:39]} exd4 {[%emt 0:03:48]} 9. cxd4 {[%emt 0:00:56]} Be7 {
[%emt 0:14:57]} 10. e5 {[%emt 0:06:43]} Ne8 {[%emt 0:00:11]} 11. d5 {[%emt 0:
05:29]} Na5 {[%emt 0:06:35]} 12. Bd3 {[%emt 0:01:37]} d6 {[%emt 0:01:33]} 13.
Qc2 {[%emt 0:22:10]} h6 {[%emt 0:02:34]} 14. Bb2 {[%emt 0:16:07]} dxe5 {
[%emt 0:03:19]} 15. Nxe5 {[%emt 0:00:05]} Nf6 {[%emt 0:01:29]} 16. Bc3 {
[%emt 0:23:20]} Qxd5 {[%emt 0:14:41]} 17. Rad1 {[%emt 0:00:36]} Qc5 {[%emt 0:
05:44]} 18. Ne4 {[%emt 0:09:56]} Nxe4 {[%emt 0:01:50]} 19. Bxe4 {[%emt 0:00:01]
} Be6 {[%emt 0:02:42]} 20. Nd7 {[%emt 0:08:03]} Bxd7 {[%emt 0:01:55]} 21. Rxd7
{[%emt 0:00:01]} Bf6 {[%emt 0:05:19]} 22. Bxa5 {[%emt 0:02:45]} Qxa5 {[%emt 0:
00:11]} 23. Rxc7 {[%emt 0:00:27]} Rad8 {[%emt 0:01:03]} 24. Rxb7 {[%emt 0:00:
33]} Bd4 {[%emt 0:00:35]} 25. Qb3 {[%emt 0:01:01]} Rd6 {[%emt 0:05:34]} 26. Rb5
{[%emt 0:00:04]} Qd2 {[%emt 0:00:33]} 27. Rd5 {[%emt 0:00:37]} Rf6 {[%emt 0:01:
23]} 28. Bf3 {[%emt 0:00:10]} Qf4 {[%emt 0:01:28]} 29. Qd3 {[%emt 0:00:53]} Bb6
{[%emt 0:02:58]} 30. Qd2 {[%emt 0:00:34]} Qxd2 {[%emt 0:02:02]} 31. Rxd2 {
[%emt 0:00:01]} Rc8 {[%emt 0:00:10]} 32. Rfd1 {[%emt 0:00:23]} Rc3 {[%emt 0:00:
26]} 33. Be4 {[%emt 0:00:34]} g6 {[%emt 0:01:09]} 34. Kf1 {[%emt 0:00:01]} Kg7
{[%emt 0:01:06]} 35. f3 {[%emt 0:00:05]} h5 {[%emt 0:02:31]} 36. Rd7 {[%emt 0:
00:09]} h4 {[%emt 0:00:17]} 37. h3 {[%emt 0:01:06]} Kh6 {[%emt 0:05:10]} 38.
R1d3 {[%emt 0:01:48]} Rc1+ {[%emt 0:00:50]} 39. Rd1 {[%emt 0:00:08]} Rxd1+ {
[%emt 0:02:06]} 40. Rxd1 {[%emt 0:00:02]} Re6 {[%emt 0:00:16]} 41. Rd7 {
[%emt 0:13:10]} f5 {[%emt 0:00:27]} 42. Bd5 {[%emt 0:00:23]} Re8 {[%emt 0:01:
27]} 43. Bb3 {[%emt 0:04:30]} Kg5 {[%emt 0:01:17]} 44. Rd6 {[%emt 0:01:26]} Re7
{[%emt 0:04:19]} 45. Ba4 {[%emt 0:07:42]} Ba5 {[%emt 0:01:26]} 46. Rd5 {
[%emt 0:02:44]} Bb6 {[%emt 0:01:05]} 47. Rd6 {[%emt 0:01:28]} Ba5 {[%emt 0:00:
07]} 48. Bb3 {[%emt 0:01:40]} Bc7 {[%emt 0:00:44]} 49. f4+ {[%emt 0:01:23]} Kh6
{[%emt 0:00:18]} 50. Rd4 {[%emt 0:00:35]} Re4 {[%emt 0:00:46]} 51. Rxe4 {
[%emt 0:00:41]} fxe4 {[%emt 0:00:08]} 52. Bc2 {[%emt 0:00:00]} Bxf4 {[%emt 0:
00:08]} 53. Bxe4 {[%emt 0:00:01]} g5 {[%emt 0:00:17]} 54. Ke2 {[%emt 0:00:01]}
Kg7 {[%emt 0:00:08]} 55. Kf3 {[%emt 0:00:01]} Kf6 {[%emt 0:00:06]} 56. Kg4 {
[%emt 0:00:25]} Be5 {[%emt 0:00:10]} 57. Bd5 {[%emt 0:00:10]} Bd6 {[%emt 0:00:
07]} 58. Kh5 {[%emt 0:00:08]} Be5 59. a4 a5 60. Bc4 Bd6 61. Kg4 Bf4 1/2-1/2

[Event "IRI-ch Men Final 2015"]
[Site "Tehran"]
[Date "2016.01.28"]
[Round "11"]
[White "Ghaem Maghami, Ehsan"]
[Black "Javanbakht, Nima"]
[Result "1/2-1/2"]
[ECO "E04"]
[WhiteElo "2594"]
[BlackElo "2422"]
[PlyCount "51"]
[EventDate "2016.??.??"]
[EventType "tourn"]
[EventRounds "11"]
[EventCountry "IRI"]
[TimeControl "40/5400+30:1800+30"]

1. c4 {[%emt 0:00:00]} e6 {[%emt 0:00:00]} 2. Nf3 {[%emt 0:00:54]} d5 {[%emt 0:
00:00]} 3. d4 {[%emt 0:00:07]} Nf6 {[%emt 0:00:00]} 4. g3 {[%emt 0:00:08]} dxc4
{[%emt 0:00:00]} 5. Bg2 {[%emt 0:00:09]} Bb4+ {[%emt 0:00:00]} 6. Bd2 {[%emt 0:
00:32]} c5 {[%emt 0:00:06]} 7. O-O {[%emt 0:08:18]} O-O {[%emt 0:00:18]} 8.
dxc5 {[%emt 0:02:16]} Bxc5 {[%emt 0:00:23]} 9. Qc2 {[%emt 0:00:52]} Nbd7 {
[%emt 0:00:34]} 10. Qxc4 {[%emt 0:09:06]} b5 {[%emt 0:00:26]} 11. Qd3 {[%emt 0:
00:02]} b4 {[%emt 0:29:41]} 12. a3 {[%emt 0:08:29]} Qa5 {[%emt 0:06:06]} 13.
Qb3 {[%emt 0:08:44]} Rb8 {[%emt 0:02:00]} 14. Qa2 {[%emt 0:06:20]} Qb6 {
[%emt 0:08:46]} 15. axb4 {[%emt 0:01:40]} Bxb4 {[%emt 0:00:06]} 16. Qxa7 {
[%emt 0:05:07]} Bxd2 {[%emt 0:02:58]} 17. Nbxd2 {[%emt 0:00:25]} Qxa7 {[%emt 0:
00:27]} 18. Rxa7 {[%emt 0:00:09]} Rxb2 {[%emt 0:00:19]} 19. Rc1 {[%emt 0:12:51]
} Bb7 {[%emt 0:04:59]} 20. Nc4 {[%emt 0:03:58]} Rb4 {[%emt 0:06:52]} 21. Nd6 {
[%emt 0:03:24]} Bxf3 {[%emt 0:01:19]} 22. Bxf3 {[%emt 0:00:35]} Rd4 {[%emt 0:
02:37]} 23. Nb5 {[%emt 0:03:42]} Rd2 {[%emt 0:00:50]} 24. Rac7 {[%emt 0:07:35]}
Ne5 {[%emt 0:02:06]} 25. Kg2 {[%emt 0:00:48]} g6 {[%emt 0:01:45]} 26. R7c2 {
[%emt 0:04:07]} 1/2-1/2

[Event "IRI-ch Men Final 2015"]
[Site "Tehran"]
[Date "2016.01.28"]
[Round "11"]
[White "Gholami, Aryan"]
[Black "Mosadeghpour, Masoud"]
[Result "1-0"]
[ECO "A48"]
[WhiteElo "2398"]
[BlackElo "2475"]
[PlyCount "77"]
[EventDate "2016.??.??"]
[EventType "tourn"]
[EventRounds "11"]
[EventCountry "IRI"]
[TimeControl "40/5400+30:1800+30"]

1. d4 {[%emt 0:01:47]} Nf6 {[%emt 0:02:05]} 2. Nf3 {[%emt 0:00:44]} g6 {
[%emt 0:00:15]} 3. Bf4 {[%emt 0:00:57]} Bg7 {[%emt 0:01:38]} 4. e3 {[%emt 0:00:
54]} c5 {[%emt 0:01:33]} 5. c3 {[%emt 0:01:45]} cxd4 {[%emt 0:01:37]} 6. exd4 {
[%emt 0:00:33]} O-O {[%emt 0:01:14]} 7. Be2 {[%emt 0:01:26]} d6 {[%emt 0:00:53]
} 8. O-O {[%emt 0:00:58]} Be6 {[%emt 0:03:59]} 9. Na3 {[%emt 0:08:15]} Qb6 {
[%emt 0:03:09]} 10. Qd2 {[%emt 0:04:16]} Nc6 {[%emt 0:05:07]} 11. Rfe1 {
[%emt 0:02:19]} Rac8 {[%emt 0:07:36]} 12. h3 {[%emt 0:10:52]} a6 {[%emt 0:07:
21]} 13. Nc4 {[%emt 0:06:55]} Qc7 {[%emt 0:06:06]} 14. Ne3 {[%emt 0:01:56]} Nd5
{[%emt 0:00:02]} 15. Bg3 {[%emt 0:04:48]} h6 {[%emt 0:13:57]} 16. Bc4 {[%emt 0:
11:27]} Nxe3 {[%emt 0:14:03]} 17. Bxe6 {[%emt 0:00:16]} Nxg2 {[%emt 0:00:03]}
18. Kxg2 {[%emt 0:01:45]} fxe6 {[%emt 0:00:02]} 19. Rxe6 {[%emt 0:00:27]} Qd7 {
[%emt 0:01:29]} 20. d5 {[%emt 0:06:08]} Nd8 {[%emt 0:00:52]} 21. Rxg6 {[%emt 0:
04:38]} Rxf3 {[%emt 0:03:59]} 22. Rxg7+ {[%emt 0:00:31]} Kxg7 {[%emt 0:00:02]}
23. Kxf3 {[%emt 0:00:19]} Qxh3 {[%emt 0:06:22]} 24. Qd4+ {[%emt 0:04:03]} Kf7 {
[%emt 0:01:07]} 25. Qe4 {[%emt 0:05:29]} Qh5+ {[%emt 0:03:34]} 26. Kg2 {
[%emt 0:00:39]} Qg6 {[%emt 0:01:06]} 27. Qe3 {[%emt 0:03:19]} Qg5 {[%emt 0:05:
17]} 28. Qf3+ {[%emt 0:01:40]} Qf6 {[%emt 0:02:10]} 29. Qg4 {[%emt 0:03:15]}
Rc7 {[%emt 0:01:58]} 30. Re1 {[%emt 0:01:08]} Qg6 {[%emt 0:03:43]} 31. Qd4 {
[%emt 0:01:39]} Qf6 {[%emt 0:01:52]} 32. Qb6 {[%emt 0:01:35]} Rd7 {[%emt 0:00:
25]} 33. Re4 {[%emt 0:02:28]} Ke8 {[%emt 0:01:22]} 34. Rf4 {[%emt 0:01:03]} Qg6
{[%emt 0:00:31]} 35. Qd4 {[%emt 0:01:19]} Nf7 {[%emt 0:00:06]} 36. Rg4 {
[%emt 0:00:19]} Qh7 {[%emt 0:00:51]} 37. Rg7 {[%emt 0:00:35]} Qh8 {[%emt 0:00:
08]} 38. Qg4 {[%emt 0:00:28]} Ng5 {[%emt 0:00:15]} 39. Qh5+ {[%emt 0:00:13]}
1-0

[Event "IRI-ch Men Final 2015"]
[Site "Tehran"]
[Date "2016.01.28"]
[Round "11"]
[White "Maghsoodloo, Parham"]
[Black "Mousavi, Seyed Khalil"]
[Result "1/2-1/2"]
[ECO "D20"]
[WhiteElo "2450"]
[BlackElo "2425"]
[PlyCount "37"]
[EventDate "2016.??.??"]
[EventType "tourn"]
[EventRounds "11"]
[EventCountry "IRI"]
[TimeControl "40/5400+30:1800+30"]

1. d4 {[%emt 0:00:00]} d5 {[%emt 0:00:36]} 2. c4 {[%emt 0:00:00]} dxc4 {
[%emt 0:00:54]} 3. e3 {[%emt 0:00:00]} Nf6 {[%emt 0:01:00]} 4. Bxc4 {[%emt 0:
00:25]} e6 {[%emt 0:00:27]} 5. Nf3 {[%emt 0:00:26]} a6 {[%emt 0:00:47]} 6. O-O
{[%emt 0:00:59]} b5 {[%emt 0:02:07]} 7. Be2 {[%emt 0:01:37]} Bb7 {[%emt 0:00:
09]} 8. b3 {[%emt 0:00:46]} Nbd7 {[%emt 0:02:16]} 9. Bb2 {[%emt 0:01:43]} c5 {
[%emt 0:01:40]} 10. Nbd2 {[%emt 0:00:58]} Be7 {[%emt 0:01:18]} 11. a4 {[%emt 0:
04:08]} b4 {[%emt 0:02:44]} 12. Nc4 {[%emt 0:00:57]} O-O {[%emt 0:00:59]} 13.
Rc1 {[%emt 0:01:13]} Rc8 {[%emt 0:04:03]} 14. Nfe5 {[%emt 0:06:15]} cxd4 {
[%emt 0:03:14]} 15. Bxd4 {[%emt 0:03:06]} Nc5 {[%emt 0:01:46]} 16. Nd3 {
[%emt 0:05:00]} Nd5 {[%emt 0:07:09]} 17. Bf3 {[%emt 0:02:02]} Ba8 {[%emt 0:06:
31]} 18. Nxc5 {[%emt 0:02:49]} Bxc5 {[%emt 0:00:09]} 19. Bb2 {[%emt 0:03:01]}
1/2-1/2

[Event "IRI-ch Men Final 2015"]
[Site "Tehran"]
[Date "2016.01.28"]
[Round "11"]
[White "Noroozi, Omid"]
[Black "Lorparizangeneh, Shahin"]
[Result "1/2-1/2"]
[ECO "C67"]
[WhiteElo "2399"]
[BlackElo "2442"]
[PlyCount "30"]
[EventDate "2016.??.??"]
[EventType "tourn"]
[EventRounds "11"]
[EventCountry "IRI"]
[TimeControl "40/5400+30:1800+30"]

1. e4 {[%emt 0:14:56]} e5 {[%emt 0:00:50]} 2. Nf3 {[%emt 0:01:13]} Nc6 {
[%emt 0:00:23]} 3. Bb5 {[%emt 0:00:07]} Nf6 {[%emt 0:04:14]} 4. O-O {[%emt 0:
00:32]} Nxe4 {[%emt 0:00:37]} 5. Re1 {[%emt 0:00:18]} Nd6 {[%emt 0:01:10]} 6.
Nxe5 {[%emt 0:00:27]} Be7 {[%emt 0:00:45]} 7. Bf1 {[%emt 0:00:21]} Nxe5 {
[%emt 0:01:41]} 8. Rxe5 {[%emt 0:00:09]} O-O {[%emt 0:01:12]} 9. Nc3 {[%emt 0:
00:16]} Bf6 {[%emt 0:03:04]} 10. Re1 {[%emt 0:00:28]} Re8 {[%emt 0:01:15]} 11.
Nd5 {[%emt 0:00:38]} Rxe1 {[%emt 0:02:00]} 12. Qxe1 {[%emt 0:00:27]} b6 {
[%emt 0:00:57]} 13. g3 {[%emt 0:02:45]} Bb7 {[%emt 0:04:24]} 14. Bg2 {[%emt 0:
06:31]} Bxd5 {[%emt 0:02:50]} 15. Bxd5 {[%emt 0:00:23]} c6 {[%emt 0:00:21]}
1/2-1/2